bitfinex-derivatives/quotes_BTCF0:USTF0_20251210
["timestamp","ask_amount","ask_price","bid_price","bid_amount"]
[1765376327227,0.0938696,92086.0,92085.0,0.04383]
[1765376328123,0.0938696,92086.0,92085.0,0.04483]
[1765376328319,0.0938696,92086.0,92085.0,0.001]
[1765376329733,0.0938696,92086.0,92085.0,0.04483]
[1765376329928,0.0938696,92086.0,92085.0,0.001]
[1765376342437,0.0938696,92086.0,92077.0,0.00016287]
[1765376342438,0.0893405,92078.0,92077.0,0.00016287]
[1765376342636,0.0893405,92078.0,92065.0,0.0010862]
[1765376342637,0.0108619,92066.0,92065.0,0.0010862]
[1765376342831,0.5936219,92066.0,92065.0,0.0010862]
[1765376343442,0.5936219,92066.0,92065.0,0.0862262]
[1765376343844,0.5946219,92066.0,92065.0,0.0426662]
[1765376344039,0.5946219,92066.0,92065.0,0.0010862]
[1765376344840,0.5936219,92066.0,92065.0,0.0010862]
[1765376345038,0.5956219,92066.0,92065.0,0.0862262]
[1765376346244,0.0911019,92066.0,92065.0,0.0862262]
[1765376346442,0.002,92066.0,92065.0,0.11720469]
[1765376346641,0.5066,92066.0,92065.0,0.11720469]
[1765376346845,0.5066,92066.0,92065.0,0.47800469]
[1765376347041,0.5066,92066.0,92065.0,0.50721052]
[1765376347253,0.5066,92066.0,92065.0,0.47800469]
[1765376347434,0.5056,92066.0,92065.0,0.47800469]
[1765376347635,0.5066,92066.0,92065.0,0.47800469]
[1765376347838,0.002,92066.0,92065.0,0.47800469]
[1765376348336,0.5155014,92071.0,92070.0,0.10894]
[1765376348537,0.50464,92071.0,92070.0,0.15077999]
[1765376348746,0.0108611,92074.0,92073.0,0.0960011]
[1765376348948,0.5155011,92074.0,92073.0,0.12697959]
[1765376349447,0.5921911,92074.0,92073.0,0.12697959]
[1765376349651,0.5921911,92074.0,92073.0,0.11611849]
[1765376349841,0.5921911,92074.0,92073.0,0.12697959]
[1765376350747,0.5941911,92074.0,92073.0,0.12697959]
[1765376351351,0.58333,92074.0,92073.0,0.12697959]
[1765376351547,0.002,92074.0,92073.0,0.51700696]
[1765376351751,0.4367,92099.0,92098.0,0.08423]
[1765376351959,0.94134,92099.0,92098.0,0.11520849]
[1765376353442,0.4367,92099.0,92098.0,0.11520849]
[1765376353645,0.03795,92099.0,92098.0,0.11520849]
[1765376353844,0.04395,92099.0,92098.0,0.11520849]
[1765376354454,0.54863,92099.0,92098.0,0.14443618]
[1765376354653,0.54863,92099.0,92098.0,0.11520849]
[1765376354654,0.51068,92099.0,92098.0,0.11520849]
[1765376354952,0.51068,92099.0,92098.0,0.15417875]
[1765376355154,0.51068,92099.0,92098.0,0.11520849]
[1765376355348,0.006,92099.0,92098.0,0.11520849]
[1765376355754,0.004,92099.0,92098.0,0.11520849]
[1765376355948,0.004,92099.0,92098.0,0.11620849]
[1765376356555,0.0858073,92106.0,92105.0,0.08423]
[1765376356745,0.0858073,92106.0,92105.0,0.11520849]
[1765376357346,0.07495,92106.0,92105.0,0.12606579]
[1765376357753,0.07595,92106.0,92105.0,0.12606579]
[1765376357948,0.03822,92106.0,92105.0,0.48686579]
[1765376358641,0.001,92106.0,92105.0,0.48686579]
[1765376359466,0.00016287,92108.0,92107.0,0.08423]
[1765376359644,0.00016287,92108.0,92107.0,0.11520849]
[1765376360755,0.00216287,92108.0,92107.0,0.11520849]
[1765376362465,0.08685987,92108.0,92107.0,0.11520849]
[1765376362858,0.07600287,92108.0,92107.0,0.11520849]
[1765376368860,0.08685987,92108.0,92107.0,0.11520849]
[1765376371053,0.08685987,92108.0,92106.0,0.0239]
[1765376371255,0.0702,92107.0,92106.0,0.0239]
[1765376371661,0.0810579,92100.0,92099.0,0.10618]
[1765376371855,0.0810579,92100.0,92099.0,0.13752138]
[1765376372670,0.0810579,92100.0,92094.0,0.0239]
[1765376372671,0.0806985,92095.0,92094.0,0.06578]
[1765376372857,0.0806985,92095.0,92094.0,0.09713042]
[1765376373056,0.0806985,92095.0,92094.0,0.13753042]
[1765376373870,0.0806985,92095.0,92094.0,0.13953042]
[1765376374366,0.0806985,92095.0,92094.0,0.13753042]
[1765376374567,0.0816985,92095.0,92094.0,0.13753042]
[1765376374961,0.0826985,92095.0,92094.0,0.13753042]
[1765376375567,0.0477785,92095.0,92094.0,0.13753042]
[1765376375764,0.07131,92095.0,92094.0,0.13753042]
[1765376375960,0.50652,92095.0,92094.0,0.13753042]
[1765376376155,0.50652,92095.0,92094.0,0.16672649]
[1765376376868,0.50652,92095.0,92094.0,0.13753042]
[1765376377070,0.001,92095.0,92094.0,0.13753042]
[1765376377269,0.50556,92095.0,92094.0,0.13753042]
[1765376377469,0.50556,92095.0,92094.0,0.17650068]
[1765376378064,0.001,92095.0,92094.0,0.17650068]
[1765376378361,0.03388,92106.0,92105.0,0.0931373]
[1765376378563,0.53844,92106.0,92105.0,0.51449735]
[1765376378758,0.57232,92106.0,92105.0,0.51449735]
[1765376379170,0.57232,92106.0,92105.0,0.48528772]
[1765376380064,0.57332,92106.0,92105.0,0.48528772]
[1765376380267,0.06876,92106.0,92105.0,0.48528772]
[1765376380459,0.57532,92106.0,92105.0,0.48528772]
[1765376380662,0.57432,92106.0,92105.0,0.5242339]
[1765376381061,0.57432,92106.0,92105.0,0.48528772]
[1765376381256,0.57232,92106.0,92105.0,0.48528772]
[1765376383274,0.57232,92106.0,92105.0,0.54374311]
[1765376385075,0.57232,92106.0,92105.0,0.48528772]
[1765376385274,0.57232,92106.0,92105.0,0.54374311]
[1765376386077,0.57232,92106.0,92105.0,0.48528772]
[1765376386267,0.57232,92106.0,92105.0,0.12448772]
[1765376387176,0.57232,92106.0,92105.0,0.18294311]
[1765376387878,0.57232,92106.0,92105.0,0.20728311]
[1765376389180,0.06776,92106.0,92105.0,0.20728311]
[1765376389377,0.5722,92106.0,92105.0,0.20728311]
[1765376391072,0.5722,92106.0,92105.0,0.14882772]
[1765376392675,0.5722,92106.0,92105.0,0.09757042]
[1765376392880,0.5722,92106.0,92105.0,0.05569042]
[1765376394484,0.5722,92106.0,92105.0,0.09757042]
[1765376395582,0.5722,92106.0,92105.0,0.05569042]
[1765376397078,0.5722,92106.0,92105.0,0.03135042]
[1765376397387,0.5722,92106.0,92105.0,0.03035042]
[1765376400789,0.06776,92106.0,92105.0,0.13208042]
[1765376401289,0.57216,92106.0,92105.0,0.13208042]
[1765376401590,0.06776,92106.0,92105.0,0.13208042]
[1765376401789,0.5722,92106.0,92105.0,0.13208042]
[1765376401990,0.06776,92106.0,92105.0,0.13208042]
[1765376402287,0.3608,92107.0,92106.0,0.0883072]
[1765376402585,0.00016287,92108.0,92106.0,0.0883072]
[1765376402586,0.00016287,92108.0,92107.0,0.07745]
[1765376402777,0.39102,92118.0,92117.0,0.0883059]
[1765376402982,0.92572,92118.0,92117.0,0.0883059]
[1765376403688,0.5347,92118.0,92117.0,0.0883059]
[1765376404391,0.5367,92118.0,92117.0,0.0883059]
[1765376405591,0.5387,92118.0,92117.0,0.0883059]
[1765376406487,0.004,92118.0,92117.0,0.0883059]
[1765376407278,0.00016287,92127.0,92126.0,0.0883049]
[1765376407592,0.00016287,92127.0,92126.0,0.507562]
[1765376407798,0.00016287,92127.0,92126.0,0.4491049]
[1765376409192,0.00016287,92127.0,92126.0,0.47965497]
[1765376409593,0.00016287,92127.0,92126.0,0.53807365]
[1765376409784,0.00316287,92127.0,92126.0,0.53807365]
[1765376410093,0.00316287,92127.0,92126.0,0.47965497]
[1765376410980,0.05817,92138.0,92137.0,0.0907636]
[1765376411293,0.02914,92138.0,92137.0,0.12131367]
[1765376411683,0.05817,92138.0,92137.0,0.12131367]
[1765376412294,0.03314,92138.0,92137.0,0.15046586]
[1765376412587,0.00108531,92140.0,92139.0,0.07991]
[1765376412787,0.05800287,92147.0,92146.0,0.0907625]
[1765376412997,0.05800287,92147.0,92146.0,0.12131257]
[1765376413293,0.06885527,92147.0,92146.0,0.12131257]
[1765376414190,0.06885527,92147.0,92146.0,0.11046007]
[1765376415194,0.06885527,92147.0,92146.0,0.07991]
[1765376415389,0.05800287,92147.0,92146.0,0.07991]
[1765376415594,0.05800287,92147.0,92146.0,0.08091]
[1765376417793,0.00016287,92147.0,92146.0,0.08091]
[1765376417991,0.02843287,92147.0,92146.0,0.11135749]
[1765376418191,0.02843287,92147.0,92146.0,0.08091]
[1765376420001,0.05650287,92147.0,92146.0,0.08091]
[1765376420299,0.02843287,92147.0,92146.0,0.11241924]
[1765376420596,0.05650287,92147.0,92146.0,0.11241924]
[1765376420801,0.06735527,92147.0,92146.0,0.11241924]
[1765376421003,0.06735527,92147.0,92146.0,0.08091]
[1765376421895,0.06735527,92147.0,92146.0,0.001]
[1765376422097,0.06735527,92147.0,92146.0,0.08091]
[1765376424692,0.06735527,92147.0,92146.0,0.001]
[1765376429191,0.06735527,92147.0,92128.0,0.02931156]
[1765376429192,0.0650145,92129.0,92128.0,0.02931156]
[1765376429505,0.0650145,92129.0,92128.0,0.10907667]
[1765376431503,0.0650145,92129.0,92128.0,0.11107667]
[1765376432005,0.0650145,92129.0,92128.0,0.11707667]
[1765376433707,0.0650145,92129.0,92128.0,0.15598489]
[1765376434102,0.0650145,92129.0,92128.0,0.11707667]
[1765376434302,0.0650145,92129.0,92128.0,0.15598489]
[1765376435306,0.0650145,92129.0,92128.0,0.11707667]
[1765376435715,0.0650145,92129.0,92125.0,0.3608]
[1765376435716,0.7716545,92129.0,92125.0,0.03894751]
[1765376436007,0.7716545,92129.0,92035.0,0.03885]
[1765376436008,0.03667,92036.0,92035.0,0.03885]
[1765376436210,0.31142485,92036.0,92035.0,0.05400182]
[1765376436512,0.31142485,92036.0,92035.0,0.11242309]
[1765376436715,0.0108662,92030.0,92026.0,0.00016298]
[1765376436915,0.03599759,92029.0,92028.0,0.07725]
[1765376437109,0.03599759,92029.0,92016.0,0.02307]
[1765376437110,0.07411,92027.0,92016.0,0.02307]
[1765376437312,0.07411,92027.0,92007.0,0.02307]
[1765376437313,0.07411,92016.0,92007.0,0.02307]
[1765376437521,0.03843999,92010.0,92009.0,0.03885]
[1765376437724,0.11002485,92010.0,92009.0,0.03885]
[1765376437909,0.11002485,92010.0,92009.0,0.07725]
[1765376438822,0.11002485,92010.0,92009.0,0.07825]
[1765376439320,0.11002485,92010.0,92009.0,0.08125]
[1765376439909,0.83162485,92010.0,92009.0,0.08125]
[1765376441511,0.83162485,92010.0,92009.0,0.004]
[1765376442525,0.0849796,92001.0,92000.0,0.00016298]
[1765376442707,0.99031251,92001.0,92000.0,0.00016298]
[1765376443115,0.99031251,92001.0,91990.0,0.00108708]
[1765376443116,0.0108708,91991.0,91990.0,0.00108708]
[1765376443321,0.29583832,91983.0,91982.0,0.07725]
[1765376443510,0.47082485,91983.0,91982.0,0.07725]
[1765376443716,0.47082485,91983.0,91982.0,0.03885]
[1765376444116,0.47082485,91983.0,91982.0,0.07725]
[1765376445121,0.47082485,91983.0,91982.0,0.07925]
[1765376445519,0.47282485,91983.0,91982.0,0.09325]
[1765376446428,0.43691,91983.0,91982.0,0.016]
[1765376446613,0.0849828,91974.0,91973.0,0.00025739]
[1765376446813,0.0850606,91974.0,91973.0,0.00025739]
[1765376447025,0.8066606,91974.0,91973.0,0.03910739]
[1765376448217,0.8086606,91974.0,91973.0,0.01425739]
[1765376448420,1.3172206,91974.0,91973.0,0.01425739]
[1765376448720,1.3172206,91974.0,91973.0,0.05610739]
[1765376450320,1.3172206,91974.0,91973.0,0.05310739]
[1765376450625,1.3172206,91974.0,91973.0,0.01525739]
[1765376451015,0.8086606,91974.0,91973.0,0.09250739]
[1765376451223,0.7236778,91974.0,91973.0,0.09250739]
[1765376452919,0.7236778,91974.0,91973.0,0.49250739]
[1765376460831,0.3608,91991.0,91989.0,0.45779]
[1765376461018,0.00016308,91992.0,91987.0,0.13025]
[1765376461019,0.00016308,91992.0,91991.0,0.4686608]
[1765376461221,0.23278308,91992.0,91991.0,0.4686608]
[1765376461429,0.3608,92002.0,92001.0,0.2326]
[1765376461729,0.6236759,92002.0,92001.0,0.58804]
[1765376461922,0.36086398,92002.0,92001.0,0.58804]
[1765376462123,0.81292398,92002.0,92001.0,0.58804]
[1765376462425,0.84322387,92002.0,92001.0,0.58804]
[1765376463129,0.84622387,92002.0,92001.0,0.58804]
[1765376463434,0.85709337,92002.0,92001.0,0.45779]
[1765376464722,0.85709337,92002.0,92001.0,0.45879]
[1765376464923,0.84622387,92002.0,92001.0,0.45879]
[1765376466133,0.90455597,92002.0,92001.0,0.45879]
[1765376466432,0.84622387,92002.0,92001.0,0.45879]
[1765376469236,0.83910023,92002.0,92001.0,0.45879]
[1765376471438,0.81592398,92002.0,92001.0,0.45879]
[1765376476035,0.82679348,92002.0,92001.0,0.45879]
[1765376476233,0.81592398,92002.0,92001.0,0.45879]
[1765376477945,0.81592398,92002.0,92001.0,0.48803395]
[1765376478338,0.82679348,92002.0,92001.0,0.48803395]
[1765376478540,0.82679348,92002.0,92001.0,0.4696596]
[1765376479044,0.81592398,92002.0,92001.0,0.4696596]
[1765376479245,0.81592398,92002.0,92001.0,0.49890355]
[1765376480158,0.81592398,92002.0,92001.0,0.4696596]
[1765376480457,0.81592398,92002.0,92001.0,0.49892635]
[1765376481155,0.81592398,92002.0,92001.0,0.4696596]
[1765376481364,0.33867091,92002.0,92001.0,0.4696596]
[1765376481661,0.00306398,92002.0,92001.0,0.4696596]
[1765376482849,0.3608,92010.0,92009.0,0.5371787]
[1765376483051,0.35926267,92010.0,92009.0,0.5371787]
[1765376484258,0.003,92010.0,92009.0,0.5371787]
[1765376484659,0.78634088,92030.0,92009.0,0.5371787]
[1765376484660,0.87158,92028.0,92027.0,0.5371765]
[1765376485958,0.3608,92028.0,92027.0,0.56644908]
[1765376486151,0.3608,92028.0,92027.0,0.5371765]
[1765376487059,0.3618,92028.0,92027.0,0.5391765]
[1765376487364,0.87258,92028.0,92027.0,0.5391765]
[1765376487559,0.7257935,92028.0,92027.0,0.57154334]
[1765376487762,0.7267935,92028.0,92027.0,0.57354334]
[1765376488169,0.7267935,92028.0,92027.0,0.57554334]
[1765376489661,0.51278,92028.0,92027.0,0.57554334]
[1765376490263,0.67038,92028.0,92027.0,0.29827684]
[1765376490567,0.67038,92028.0,92027.0,0.03836684]
[1765376490756,0.67038,92028.0,92027.0,0.30527684]
[1765376491066,0.67038,92028.0,92027.0,0.55481684]
[1765376491366,0.67038,92028.0,92027.0,0.6327833]
[1765376491565,0.67038,92028.0,92027.0,0.55481684]
[1765376493459,0.67038,92028.0,92027.0,0.03836684]
[1765376493764,0.67038,92028.0,92027.0,0.30527684]
[1765376494066,0.67038,92028.0,92027.0,0.55481684]
[1765376498168,0.67038,92028.0,92027.0,0.91561684]
[1765376504060,0.51278,92028.0,92027.0,0.91561684]
[1765376510276,0.51278,92028.0,92027.0,0.03836684]
[1765376510478,0.51278,92028.0,92027.0,0.56568334]
[1765376517377,0.51278,92028.0,92027.0,0.55481684]
[1765376520582,0.51278,92028.0,92027.0,0.03836684]
[1765376520879,0.48317,92019.0,92018.0,0.00016308]
[1765376521079,0.0108684,92011.0,92010.0,0.07796646]
[1765376521387,0.0108684,92011.0,91980.0,0.15233]
[1765376521388,0.48317,92003.0,92002.0,0.07796646]
[1765376521577,0.48317,92003.0,91996.0,0.09727861]
[1765376521578,0.4940398,91999.0,91996.0,0.07796646]
[1765376521778,0.4940404,91994.0,91993.0,0.07796646]
[1765376521977,0.62566,91992.0,91991.0,0.31259646]
[1765376522178,0.62566,91992.0,91991.0,0.59543]
[1765376522379,0.62566,91992.0,91991.0,0.83189]
[1765376523980,0.62866,91992.0,91991.0,0.83189]
[1765376524681,0.62866,91992.0,91991.0,0.3608]
[1765376524883,0.48617,91992.0,91991.0,0.8557608]
[1765376525082,0.003,91992.0,91991.0,0.8557608]
[1765376525582,0.00016308,92001.0,92000.0,0.4819597]
[1765376525781,0.98965,92020.0,92019.0,0.47109]
[1765376525982,0.98965,92020.0,92019.0,0.83189]
[1765376526680,0.48317,92020.0,92019.0,0.83189]
[1765376526973,0.48517,92020.0,92019.0,0.87088898]
[1765376527385,0.48517,92020.0,92019.0,0.87088594]
[1765376527885,0.48517,92020.0,92019.0,0.83189]
[1765376529084,0.48517,92020.0,92019.0,0.83289]
[1765376529588,0.4960374,92020.0,92019.0,0.63543007]
[1765376529887,0.4960374,92020.0,92019.0,0.87189007]
[1765376530090,0.48517,92020.0,92019.0,0.87189007]
[1765376532789,0.48517,92020.0,92019.0,0.90216268]
[1765376532985,0.48517,92020.0,92019.0,0.39207261]
[1765376533686,0.48517,92020.0,92019.0,0.03127261]
[1765376535987,0.48517,92020.0,92019.0,0.48950261]
[1765376536188,0.48517,92020.0,92019.0,0.25861261]
[1765376536587,0.48517,92020.0,92019.0,0.03127261]
[1765376537191,0.48517,92020.0,92019.0,0.25861261]
[1765376538187,0.48517,92020.0,92019.0,0.03127261]
[1765376538692,0.99141,92020.0,92019.0,0.03127261]
[1765376539690,0.99141,92020.0,92019.0,0.25861261]
[1765376540083,0.99141,92020.0,92019.0,0.03127261]
[1765376540889,0.99141,92020.0,92019.0,0.25861261]
[1765376542285,0.99141,92020.0,92019.0,0.48950261]
[1765376542681,0.99141,92020.0,92019.0,0.52850268]
[1765376543091,0.24402,92020.0,92019.0,0.52850268]
[1765376543300,0.00016308,92029.0,92028.0,0.5442664]
[1765376543491,0.64214992,92040.0,92039.0,0.4690951]
[1765376543694,0.46487649,92040.0,92039.0,0.86016771]
[1765376544586,0.46487649,92040.0,92039.0,0.48850261]
[1765376545193,0.00108649,92040.0,92039.0,0.48850261]
[1765376545598,0.00208649,92040.0,92039.0,0.49150261]
[1765376545893,0.22555649,92040.0,92039.0,0.49150261]
[1765376546095,0.46587649,92040.0,92039.0,0.49150261]
[1765376546691,0.46487649,92040.0,92039.0,0.48850261]
[1765376546898,0.46587649,92040.0,92039.0,0.49550261]
[1765376547798,0.46587649,92040.0,92039.0,0.5344828]
[1765376548199,0.46587649,92040.0,92039.0,0.49550261]
[1765376550605,0.00208649,92040.0,92039.0,0.5344828]
[1765376550809,0.00208649,92040.0,92039.0,0.49550261]
[1765376551900,0.62425641,92049.0,92048.0,0.4642341]
[1765376552095,0.44698298,92049.0,92048.0,0.85530671]
[1765376552295,0.44698298,92049.0,92048.0,0.88452045]
[1765376552800,0.44698298,92049.0,92048.0,0.85530671]
[1765376553001,0.44798298,92049.0,92048.0,0.85830671]
[1765376553500,0.44898298,92049.0,92048.0,0.85830671]
[1765376554406,0.44798298,92049.0,92048.0,0.85830671]
[1765376554908,0.44698298,92049.0,92048.0,0.85530671]
[1765376555109,0.44798298,92049.0,92048.0,0.86030671]
[1765376555601,0.44698298,92049.0,92048.0,0.85530671]
[1765376555906,0.44798298,92049.0,92048.0,0.86030671]
[1765376556804,0.00116298,92049.0,92048.0,0.86030671]
[1765376557606,0.80136686,92060.0,92059.0,0.4642328]
[1765376557806,0.44682,92060.0,92059.0,0.49450541]
[1765376558195,0.44682,92060.0,92059.0,0.03027261]
[1765376558892,0.44782,92060.0,92059.0,0.03327261]
[1765376559291,0.4596826,92060.0,92059.0,0.03327261]
[1765376559894,0.4596826,92060.0,92059.0,0.03217968]
[1765376565903,0.4596826,92060.0,92059.0,0.003]
[1765376568208,0.4596826,92060.0,92059.0,0.03220892]
[1765376568408,0.4596826,92060.0,92059.0,0.003]
[1765376569214,0.4596826,92060.0,92059.0,0.03221909]
[1765376572214,0.8204826,92060.0,92059.0,0.03221909]
[1765376572919,0.8204826,92060.0,92059.0,0.48558909]
[1765376573108,1.3260426,92060.0,92059.0,0.48558909]
[1765376573416,1.3260026,92060.0,92059.0,0.48558909]
[1765376573916,1.31514,92060.0,92059.0,0.48558909]
[1765376574118,0.80962,92060.0,92059.0,0.52453927]
[1765376574319,1.31514,92060.0,92059.0,0.52453927]
[1765376575312,1.31514,92060.0,92059.0,0.07116927]
[1765376575513,1.31514,92060.0,92059.0,0.52453927]
[1765376576017,1.31514,92060.0,92059.0,0.48558909]
[1765376576723,0.80962,92060.0,92059.0,0.48558909]
[1765376576915,1.31514,92060.0,92059.0,0.48558909]
[1765376577415,1.31514,92060.0,92059.0,0.48258909]
[1765376577416,1.31414,92060.0,92059.0,0.48258909]
[1765376577618,1.31514,92060.0,92059.0,0.48758909]
[1765376578012,1.31314,92060.0,92059.0,0.48258909]
[1765376578213,0.80962,92060.0,92059.0,0.48758909]
[1765376578421,1.31514,92060.0,92059.0,0.48758909]
[1765376578917,1.31414,92060.0,92059.0,0.48758909]
[1765376579625,1.31414,92060.0,92059.0,0.03421909]
[1765376579815,1.31414,92060.0,92059.0,0.24737909]
[1765376580012,1.31414,92060.0,92059.0,0.46242909]
[1765376581432,1.31414,92060.0,92059.0,0.03421909]
[1765376581733,0.42638,92051.0,92050.0,0.00016298]
[1765376581935,1.3034837,92051.0,92050.0,0.00016298]
[1765376582125,0.42638,92046.0,92045.0,0.05853136]
[1765376582325,0.4372444,92045.0,92044.0,0.05853136]
[1765376582520,0.4372444,92045.0,92043.0,0.05853136]
[1765376582724,0.93186,92044.0,92043.0,0.05853136]
[1765376583126,0.93186,92044.0,92036.0,0.0108655]
[1765376583127,0.5584347,92043.0,92042.0,0.05853136]
[1765376583325,0.5547555,92036.0,92035.0,0.05853136]
[1765376583524,1.0602355,92036.0,92035.0,0.21316]
[1765376583924,0.93186,92036.0,92035.0,0.42821]
[1765376584124,0.93186,92036.0,92035.0,0.48683008]
[1765376584321,0.79179126,92045.0,92044.0,0.42821]
[1765376584527,0.42638,92038.0,92037.0,0.78901]
[1765376584729,0.9319,92038.0,92037.0,0.78901]
[1765376585125,0.9319,92038.0,92037.0,0.42821]
[1765376585335,0.54757,92036.0,92035.0,0.007]
[1765376585840,0.54757,92036.0,92035.0,0.22016]
[1765376586034,0.54757,92036.0,92035.0,0.21816]
[1765376586242,0.54757,92036.0,92035.0,0.005]
[1765376586432,0.54757,92036.0,92035.0,0.02929854]
[1765376586737,0.4372456,92035.0,92034.0,0.00016298]
[1765376587833,0.4382456,92035.0,92034.0,0.00216298]
[1765376588728,0.42638,92029.0,92028.0,0.02929854]
[1765376588927,0.9319,92029.0,92028.0,0.02929854]
[1765376589226,0.4372464,92028.0,92027.0,0.02929854]
[1765376589433,0.4372464,92028.0,92027.0,0.24245854]
[1765376589634,0.437247,92023.0,92022.0,0.4390771]
[1765376591535,0.437247,92023.0,92022.0,0.4450771]
[1765376591536,0.42738,92023.0,92022.0,0.4450771]
[1765376592329,0.42738,92023.0,92022.0,0.43421]
[1765376593936,0.42738,92023.0,92022.0,0.46376395]
[1765376599041,0.438247,92023.0,92022.0,0.47463105]
[1765376599236,0.438247,92023.0,92022.0,0.46376395]
[1765376600735,0.799047,92023.0,92022.0,0.03555395]
[1765376601041,0.799047,92023.0,92022.0,0.03222795]
[1765376601240,0.799047,92023.0,92022.0,0.002674]
[1765376607350,0.799047,92023.0,92015.0,0.00108679]
[1765376607351,0.5250378,92016.0,92015.0,0.00108679]
[1765376607545,1.0304778,92016.0,92015.0,0.03063149]
[1765376607853,1.0304778,92016.0,92015.0,0.00108679]
[1765376608752,1.0304778,92016.0,92015.0,0.39587679]
[1765376609653,1.0314778,92016.0,92015.0,0.21191679]
[1765376609853,1.0314778,92016.0,92015.0,0.00608679]
[1765376610349,1.0314778,92016.0,92015.0,0.00508679]
[1765376610541,1.0304778,92016.0,92015.0,0.00308679]
[1765376610853,1.0314778,92016.0,92015.0,0.00308679]
[1765376611449,0.4025978,92016.0,92015.0,0.40874479]
[1765376611651,0.9089378,92016.0,92015.0,0.43792987]
[1765376612056,0.9089378,92016.0,92015.0,0.43792822]
[1765376612255,0.89811,92016.0,92015.0,0.43792822]
[1765376615769,0.89811,92016.0,92015.0,0.42706022]
[1765376616166,0.89811,92016.0,92015.0,0.46606868]
[1765376618165,0.39263,92016.0,92015.0,0.46606868]
[1765376618672,0.001,92016.0,92015.0,0.42706022]
[1765376619055,0.19643,92016.0,92015.0,0.42706022]
[1765376619370,0.001,92016.0,92015.0,0.42706022]
[1765376621364,0.39144,92016.0,92015.0,0.42706022]
[1765376623265,0.39144,92016.0,92015.0,0.46613037]
[1765376624055,0.39144,92016.0,92015.0,0.42706022]
[1765376624259,0.39144,92016.0,92015.0,0.46613374]
[1765376624953,0.39144,92016.0,92015.0,0.56285374]
[1765376625156,0.39144,92016.0,92015.0,0.52378022]
[1765376625558,0.39144,92016.0,92015.0,0.53464822]
[1765376633270,0.39144,92016.0,92015.0,0.5932683]
[1765376634673,0.05831363,92041.0,92029.0,0.39479]
[1765376634973,0.39060298,92037.0,92036.0,0.39479]
[1765376635268,0.39060298,92037.0,92036.0,0.42397343]
[1765376635664,0.39060298,92037.0,92036.0,0.42401866]
[1765376636466,0.39560298,92037.0,92036.0,0.42501866]
[1765376637271,0.39560298,92037.0,92036.0,0.46405371]
[1765376637567,0.39560298,92037.0,92036.0,0.42501866]
[1765376637769,0.39760298,92037.0,92036.0,0.42501866]
[1765376638156,0.39460298,92037.0,92036.0,0.42501866]
[1765376638661,0.39360298,92037.0,92036.0,0.42501866]
[1765376639858,0.39360298,92037.0,92036.0,0.23605866]
[1765376640056,0.75440298,92037.0,92036.0,0.03022866]
[1765376640267,0.75440298,92037.0,92036.0,0.05950375]
[1765376640669,0.75440298,92037.0,92036.0,0.03022866]
[1765376641266,1.25980298,92037.0,92036.0,0.40072416]
[1765376641466,0.89900298,92037.0,92036.0,0.38985866]
[1765376643272,0.89900298,92037.0,92036.0,0.41912957]
[1765376646577,0.90986838,92037.0,92036.0,0.41912957]
[1765376647172,0.40446838,92037.0,92036.0,0.41912957]
[1765376649376,0.00316298,92037.0,92036.0,0.41912957]
[1765376649581,0.17939298,92037.0,92036.0,0.38985866]
[1765376649881,0.17939298,92037.0,92036.0,0.44848665]
[1765376649882,0.00316298,92037.0,92036.0,0.44848665]
[1765376650076,0.00316298,92037.0,92036.0,0.20435866]
[1765376650077,0.36796298,92037.0,92036.0,0.20435866]
[1765376650282,0.36796298,92037.0,92036.0,0.24337681]
[1765376650683,0.36796298,92037.0,92036.0,0.42887681]
[1765376656288,0.36796298,92037.0,92036.0,0.38985866]
[1765376660987,0.36796298,92037.0,92036.0,0.40072416]
[1765376661292,0.36796298,92037.0,92036.0,0.45924942]
[1765376662190,0.36796298,92037.0,92036.0,0.40072416]
[1765376663488,0.36796298,92037.0,92036.0,0.20435866]
[1765376663692,0.36796298,92037.0,92036.0,0.03022866]
[1765376663889,0.36796298,92037.0,92036.0,0.0693139]
[1765376664190,0.36796298,92037.0,92036.0,0.03022866]
[1765376664381,0.36796298,92037.0,92036.0,0.06933637]
[1765376667491,0.36796298,92037.0,92036.0,0.03022866]
[1765376667693,0.72876298,92037.0,92036.0,0.03022866]
[1765376669293,0.72876298,92037.0,92036.0,0.05955177]
[1765376670295,0.72876298,92037.0,92036.0,0.03022866]
[1765376672600,0.72876298,92037.0,92036.0,0.20413866]
[1765376672995,0.72876298,92037.0,92036.0,0.03022866]
[1765376676502,1.23408298,92037.0,92036.0,0.37644866]
[1765376676701,0.72876298,92037.0,92036.0,0.37644866]
[1765376676902,1.23408298,92037.0,92036.0,0.37644866]
[1765376678214,1.23408298,92037.0,92036.0,0.20413866]
[1765376678910,1.23408298,92037.0,92036.0,0.03022866]
[1765376681806,0.4445064,92028.0,92027.0,0.00016298]
[1765376682015,0.4445078,92016.0,92006.0,0.05862434]
[1765376682223,0.3414789,92007.0,92006.0,0.34622]
[1765376682430,0.8467989,92007.0,92006.0,0.34622]
[1765376685325,0.8477989,92007.0,92006.0,0.35022]
[1765376685719,0.8477989,92007.0,92006.0,0.35322]
[1765376686525,0.8477989,92007.0,92006.0,0.007]
[1765376687429,0.8477989,92007.0,92006.0,0.18091]
[1765376687622,0.8477989,92007.0,92006.0,0.35322]
[1765376691824,0.1802389,92007.0,92006.0,0.35322]
[1765376692122,0.8478789,92007.0,92006.0,0.35322]
[1765376692718,0.83701,92007.0,92006.0,0.35322]
[1765376693822,0.83701,92007.0,92006.0,0.38375727]
[1765376698827,0.16937,92007.0,92006.0,0.38375727]
[1765376699034,0.001,92007.0,92006.0,0.38375727]
[1765376699220,0.001,92007.0,92006.0,0.74455727]
[1765376699425,0.50544,92011.0,92010.0,0.42965]
[1765376699623,0.50544,92011.0,92010.0,0.46018727]
[1765376700329,0.32150298,92016.0,92015.0,0.33351]
[1765376700539,0.33237078,92016.0,92015.0,0.72484727]
[1765376700828,0.32150298,92016.0,92015.0,0.72393952]
[1765376701032,0.00016298,92016.0,92015.0,0.72393952]
[1765376701329,0.09811649,92040.0,92015.0,0.72393952]
[1765376701330,0.80522,92032.0,92031.0,0.33351]
[1765376701535,0.32134,92005.0,92004.0,0.75283177]
[1765376701724,0.32134,92005.0,92004.0,0.3631404]
[1765376702429,0.32134,92005.0,92004.0,0.1979004]
[1765376702634,0.32134,92005.0,92004.0,0.0296304]
[1765376702838,0.32234,92005.0,92004.0,0.0346304]
[1765376703027,0.32234,92005.0,92004.0,0.3681404]
[1765376703428,0.32234,92005.0,92004.0,0.2029004]
[1765376703936,0.32234,92005.0,92004.0,0.3681404]